fUST/lending_fUST_20240614
["ID","MTS","AMOUNT","RATE_DAILY","PERIOD"]
[329455958,1718375458783,-1000.0,0.00017793,2]
[329455959,1718375458813,-1000.0,0.00017793,2]
[329455961,1718375458824,-1000.0,0.00017793,2]
[329455964,1718375458847,-1000.0,0.00017793,2]
[329455966,1718375458859,-1000.0,0.00017793,2]
[329455969,1718375458889,-1000.0,0.00017793,2]
[329455970,1718375458901,-1000.0,0.00017793,2]
[329455972,1718375458912,-1000.0,0.00017793,2]
[329455973,1718375458923,-1000.0,0.00017793,2]
[329455975,1718375458933,-1000.0,0.00017793,2]
[329455976,1718375458943,-151.0,0.00017793,2]
[329455978,1718375458960,-151.0,0.00017793,2]
[329455979,1718375458989,-1000.0,0.00017793,2]
[329455982,1718375459012,-588.69096662,0.00017793,2]
[329455984,1718375459033,-1000.0,0.00017793,2]
[329455985,1718375459046,-151.0,0.00017793,2]
[329455987,1718375459061,-1000.0,0.00017793,2]
[329455990,1718375459111,-1000.0,0.00017793,2]
[329455992,1718375459122,-500.0,0.00017793,2]
[329455995,1718375459144,-500.0,0.00017793,2]
[329455997,1718375459176,-1000.0,0.00017793,2]
[329455998,1718375459208,-1000.0,0.00017793,2]
[329456000,1718375459252,-500.0,0.00017793,2]
[329456002,1718375459269,-476.706265,0.00017793,2]
[329456004,1718375459281,-500.0,0.00017793,2]
[329456007,1718375459327,-500.0,0.00017793,2]
[329456009,1718375459360,-151.0,0.00017793,2]
[329456011,1718375459373,-151.0,0.00017793,2]
[329456013,1718375459397,-151.0,0.00017793,2]
[329456014,1718375459412,-500.0,0.00017793,2]
[329456018,1718375459452,-151.0,0.00017793,2]
[329456020,1718375459471,-572.00239018,0.00017793,2]
[329456021,1718375459487,-151.0,0.00017793,2]
[329456023,1718375459523,-163.271812,0.00017793,2]
[329456025,1718375459548,-500.0,0.00017793,2]
[329456027,1718375459591,-500.0,0.00017794,2]
[329456029,1718375459621,-500.0,0.00017794,2]
[329456032,1718375459636,-500.0,0.00017794,2]
[329456034,1718375459669,-503.40066937,0.00017794,2]
[329456036,1718375459685,-500.0,0.00017794,2]
[329456038,1718375459697,-502.53014824,0.00017794,2]
[329456040,1718375459729,-502.48231643,0.00017794,2]
[329456042,1718375459786,-500.0,0.00017794,2]
[329456045,1718375459810,-517.26896291,0.00017794,2]
[329456047,1718375459824,-500.0,0.00017794,2]
[329456048,1718375459869,-500.97003721,0.00017794,2]
[329456051,1718375459883,-500.82682095,0.00017794,2]
[329456053,1718375459893,-500.0,0.00017794,2]
[329456054,1718375459904,-618.19807028,0.00017794,2]
[329456057,1718375459944,-501.92966612,0.00017794,2]
[329456058,1718375459968,-500.0,0.00017794,2]
[329456060,1718375459987,-500.0,0.00017794,2]
[329456062,1718375459999,-500.0,0.00017794,2]
[329456064,1718375460016,-500.0,0.00017794,2]
[329456066,1718375460055,-500.0,0.00017794,2]
[329456069,1718375460071,-502.32196707,0.00017794,2]
[329456070,1718375460083,-500.0,0.00017794,2]
[329456072,1718375460107,-503.11326772,0.00017794,2]
[329456074,1718375460120,-500.0,0.00017794,2]
[329456076,1718375460131,-283.00068631,0.00017794,2]
[329456078,1718375460142,-500.0,0.00017794,2]
[329456080,1718375460156,-526.2526835,0.00017794,2]
[329456082,1718375460170,-500.0,0.00017794,2]
[329456085,1718375460189,-500.0,0.00017794,2]
[329456087,1718375460208,-504.08510193,0.00017794,2]
[329456090,1718375460230,-501.79772053,0.00017794,2]
[329456092,1718375460240,-506.61253148,0.00017794,2]
[329456094,1718375460250,-506.29916651,0.00017794,2]
[329456096,1718375460264,-516.46491647,0.00017794,2]
[329456098,1718375460275,-500.0,0.00017794,2]
[329456099,1718375460304,-500.0,0.00017794,2]
[329456101,1718375460320,-205.55308,0.00017794,2]
[329456103,1718375460334,-205.55308,0.00017794,2]
[329456107,1718375460379,-500.0,0.00017794,2]
[329456109,1718375460391,-522.21627097,0.00017794,2]
[329456111,1718375460404,-500.0,0.00017794,2]
[329456113,1718375460415,-176.809303,0.00017794,2]
[329456114,1718375460433,-176.809303,0.00017794,2]
[329456117,1718375460451,-151.0,0.00017794,2]
[329456119,1718375460462,-151.0,0.00017794,2]
[329456121,1718375460474,-151.0,0.00017794,2]
[329456122,1718375460504,-500.0,0.00017794,2]
[329456124,1718375460516,-151.0,0.00017794,2]
[329456126,1718375460532,-500.0,0.00017794,2]
[329456128,1718375460561,-151.0,0.00017794,2]
[329456131,1718375460613,-500.0,0.00017794,2]
[329456134,1718375460654,-500.0,0.00017794,2]
[329456136,1718375460685,-500.0,0.00017794,2]
[329456137,1718375460698,-263.262111,0.00017794,2]
[329456140,1718375460730,-190.792332,0.00017794,2]
[329456142,1718375460777,-190.792332,0.00017794,2]
[329456144,1718375460790,-190.792332,0.00017794,2]
[329456145,1718375460807,-190.792332,0.00017794,2]
[329456147,1718375460822,-151.0,0.00017794,2]
[329456149,1718375460833,-151.623046,0.00017794,2]
[329456151,1718375460845,-333.095242,0.00017794,2]
[329456153,1718375460920,-333.095242,0.00017794,2]
[329456154,1718375460952,-333.095242,0.00017794,2]
[329456157,1718375461005,-333.095242,0.00017794,2]
[329456160,1718375461017,-4492.614933,0.00017794,2]
[329456163,1718375461027,-4492.614933,0.00017794,2]
[329456165,1718375461038,-4492.614933,0.00017794,2]
[329456169,1718375461064,-4492.614933,0.00017794,2]
[329456173,1718375461096,-1841.287719,0.00017794,2]
[329456174,1718375461108,-1841.287719,0.00017794,2]
[329456177,1718375461121,-1841.287719,0.00017794,2]
[329456180,1718375461141,-1841.287719,0.00017794,2]
[329456182,1718375461166,-211.154694,0.00017794,2]
[329456184,1718375461192,-211.154694,0.00017794,2]
[329456185,1718375461209,-211.154694,0.00017794,2]
[329456187,1718375461221,-211.154694,0.00017794,2]
[329456189,1718375461238,-211.154694,0.00017794,2]
[329456191,1718375461273,-211.154694,0.00017794,2]
[329456194,1718375461310,-1361.183768,0.00017794,2]
[329456196,1718375461322,-1361.183768,0.00017794,2]
[329456197,1718375461333,-1361.183768,0.00017794,2]
[329456200,1718375461350,-1361.183768,0.00017794,2]
[329456201,1718375461380,-736.75034,0.00017794,2]
[329456202,1718375461396,-736.75034,0.00017794,2]
[329456204,1718375461409,-736.75034,0.00017794,2]
[329456206,1718375461439,-1723.04881,0.00017794,2]
[329456208,1718375461471,-1723.04881,0.00017794,2]
[329456210,1718375461489,-1723.04881,0.00017794,2]
[329456213,1718375461552,-1723.04881,0.00017794,2]
[329456215,1718375461614,-151.0,0.00017794,2]
[329456218,1718375461637,-151.0,0.00017794,2]
[329456219,1718375461651,-151.0,0.00017794,2]
[329456221,1718375461690,-736.75034,0.00017794,2]
[329456223,1718375461713,-736.75034,0.00017794,2]
[329456226,1718375461726,-736.75034,0.00017794,2]
[329456228,1718375461751,-151.0,0.00017794,2]
[329456229,1718375461764,-151.0,0.00017794,2]
[329456230,1718375461775,-151.0,0.00017794,2]
[329456231,1718375461786,-151.0,0.00017794,2]
[329456232,1718375461812,-151.0,0.00017794,2]
[329456233,1718375461823,-151.0,0.00017794,2]
[329456234,1718375461856,-291.600734,0.00017794,2]
[329456235,1718375461892,-291.600734,0.00017794,2]
[329456236,1718375461928,-291.600734,0.00017794,2]
[329456237,1718375461944,-291.600734,0.00017794,2]
[329456239,1718375461962,-291.600734,0.00017794,2]
[329456241,1718375461988,-291.600734,0.00017794,2]
[329456243,1718375462007,-766.755445,0.00017794,2]
[329456245,1718375462018,-766.755445,0.00017794,2]
[329456247,1718375462030,-766.755445,0.00017794,2]
[329456249,1718375462044,-766.755445,0.00017794,2]
[329456251,1718375462055,-151.0,0.00017794,2]
[329456252,1718375462082,-151.0,0.00017794,2]
[329456254,1718375462106,-151.0,0.00017794,2]
[329456256,1718375462131,-151.0,0.00017794,2]
[329456259,1718375462174,-331.0,0.00017898,2]
[329456261,1718375462188,-500.0,0.00017964,2]
[329456262,1718375462204,-500.0,0.00017964,2]
[329456264,1718375462216,-500.0,0.00017964,2]
[329456266,1718375462252,-500.0,0.00017964,2]
[329456269,1718375462268,-3717.17,0.00017965,2]
[329456270,1718375462283,-500.0,0.00017965,2]
[329456272,1718375462306,-500.0,0.00017965,2]
[329456274,1718375462352,-500.0,0.00017965,2]
[329456275,1718375462365,-500.0,0.00017965,2]
[329456277,1718375462376,-500.0,0.00017965,2]
[329456279,1718375462388,-500.0,0.00017965,2]
[329456281,1718375462407,-500.0,0.00017965,2]
[329456282,1718375462419,-500.0,0.00017965,2]
[329456284,1718375462440,-500.0,0.00017965,2]
[329456286,1718375462453,-500.0,0.00017965,2]
[329456287,1718375462470,-577.78776029,0.00017968,2]
[329456289,1718375462484,-877.05746171,0.00018,2]
[329456291,1718375462506,-581.17724957,0.00018,2]
[329456292,1718375462526,-253.81380844,0.0001805,2]
[329456294,1718375462541,-508.73609276,0.00018064,2]
[329456296,1718375462561,-500.0,0.00018064,2]
[329456298,1718375462594,-500.0,0.00018064,2]
[329456300,1718375462617,-500.0,0.00018064,2]
[329456302,1718375462633,-500.0,0.00018064,2]
[329456305,1718375462671,-500.0,0.00018064,2]
[329456308,1718375462687,-500.0,0.00018064,2]
[329456309,1718375462731,-500.0,0.00018064,2]
[329456311,1718375462744,-500.0,0.00018064,2]
[329456312,1718375462758,-506.55197469,0.00018064,2]
[329456314,1718375462770,-500.0,0.00018064,2]
[329456316,1718375462790,-500.0,0.00018064,2]
[329456317,1718375462800,-500.0,0.00018064,2]
[329456319,1718375462816,-500.0,0.00018064,2]
[329456321,1718375462829,-500.0,0.00018064,2]
[329456322,1718375462840,-500.0,0.00018064,2]
[329456324,1718375462860,-500.0,0.00018064,2]
[329456326,1718375462877,-500.0,0.00018064,2]
[329456327,1718375462893,-500.0,0.00018064,2]
[329456329,1718375462905,-766.755445,0.00018064,2]
[329456331,1718375462926,-766.755445,0.00018064,2]
[329456333,1718375462941,-500.0,0.00018064,2]
[329456335,1718375462960,-500.0,0.00018064,2]
[329456337,1718375462972,-500.0,0.00018064,2]
[329456339,1718375462997,-500.0,0.00018064,2]
[329456341,1718375463017,-151.0,0.00018064,2]
[329456343,1718375463029,-500.0,0.00018064,2]
[329456345,1718375463045,-151.0,0.00018064,2]
[329456347,1718375463068,-500.0,0.00018066,2]
[329456349,1718375463108,-500.0,0.00018066,2]
[329456351,1718375463122,-500.0,0.00018066,2]
[329456353,1718375463149,-500.0,0.00018066,2]
[329456355,1718375463186,-500.0,0.00018066,2]
[329456358,1718375463225,-500.0,0.00018066,2]
[329456360,1718375463272,-500.0,0.00018066,2]
[329456361,1718375463293,-333.095242,0.00018066,2]
[329456363,1718375463316,-333.095242,0.00018066,2]
[329456366,1718375463351,-500.0,0.00018066,2]
[329456373,1718375463468,-5680.8,0.00018066,2]
[329456375,1718375463483,-4492.614933,0.00018066,2]
[329456377,1718375463499,-4492.614933,0.00018066,2]
[329456379,1718375463514,-211.154694,0.00018066,2]
[329456381,1718375463532,-500.0,0.00018066,2]
[329456383,1718375463545,-211.154694,0.00018066,2]
[329456385,1718375463565,-500.0,0.00018066,2]
[329456387,1718375463589,-1361.183768,0.00018066,2]
[329456389,1718375463602,-1361.183768,0.00018066,2]
[329456390,1718375463615,-736.75034,0.00018066,2]
[329456392,1718375463649,-1723.04881,0.00018066,2]
[329456394,1718375463693,-500.0,0.00018066,2]
[329456397,1718375463713,-2028.85,0.00018066,2]
[329456399,1718375463728,-1723.04881,0.00018066,2]
[329456402,1718375463751,-151.0,0.00018066,2]
[329456405,1718375463788,-736.75034,0.00018066,2]
[329456407,1718375463806,-151.0,0.00018066,2]
[329456408,1718375463844,-151.0,0.00018066,2]
[329456411,1718375463861,-500.0,0.00018066,2]
[329456412,1718375463882,-500.0,0.00018066,2]
[329456414,1718375463900,-500.0,0.00018066,2]
[329456417,1718375463965,-291.600734,0.00018066,2]
[329456419,1718375464017,-291.600734,0.00018066,2]
[329456422,1718375464057,-500.0,0.00018066,2]
[329456423,1718375464076,-500.0,0.00018066,2]
[329456425,1718375464087,-766.755445,0.00018066,2]
[329456428,1718375464169,-1597.14,0.00018066,2]
[329456429,1718375464187,-766.755445,0.00018066,2]
[329456432,1718375464255,-8730.58,0.00018066,2]
[329456433,1718375464316,-8730.58,0.00018066,2]
[329456435,1718375464347,-806.51,0.00018066,2]
[329456437,1718375464360,-157.202612,0.00018066,2]
[329456439,1718375464380,-580.25,0.00018066,2]
[329456440,1718375464405,-500.0,0.00018066,2]
[329456442,1718375464415,-504.23,0.00018066,2]
[329456443,1718375464427,-151.0,0.00018066,2]
[329456446,1718375464472,-500.0,0.00018066,2]
[329456449,1718375464524,-500.0,0.00018067,2]
[329456450,1718375464540,-525.34171483,0.00018067,2]
[329456452,1718375464554,-500.0,0.00018067,2]
[329456454,1718375464592,-500.0,0.00018067,2]
[329456457,1718375464631,-500.0,0.00018067,2]
[329456459,1718375464665,-502.79293394,0.00018067,2]
[329456461,1718375464686,-500.0,0.00018067,2]
[329456463,1718375464718,-500.0,0.00018067,2]
[329456465,1718375464729,-500.0,0.00018067,2]
[329456467,1718375464740,-156.62261596,0.00018067,2]
[329456469,1718375464764,-500.0,0.00018067,2]
[329456470,1718375464776,-532.04,0.00018067,2]
[329456472,1718375464804,-583.87,0.00018067,2]
[329456474,1718375464888,-500.0,0.00018067,2]
[329456476,1718375464919,-500.0,0.00018067,2]
[329456478,1718375464939,-500.0,0.00018067,2]
[329456481,1718375464951,-500.0,0.00018067,2]
[329456482,1718375464981,-500.0,0.00018067,2]
[329456484,1718375464994,-500.0,0.00018067,2]
[329456486,1718375465037,-500.0,0.00018067,2]
[329456487,1718375465047,-500.0,0.00018067,2]
[329456488,1718375465104,-200.0,0.00018067,2]
[329456489,1718375465141,-500.0,0.00018067,2]
[329456491,1718375465167,-500.0,0.00018067,2]
[329456493,1718375465202,-200.0,0.00018067,2]
[329456496,1718375465240,-509.88633484,0.00018067,2]
[329456498,1718375465268,-500.0,0.00018067,2]
[329456500,1718375465292,-152.167702,0.00018067,2]
[329456502,1718375465315,-500.0,0.00018067,2]
[329456505,1718375465355,-500.0,0.00018067,2]
[329456506,1718375465366,-500.0,0.00018067,2]
[329456508,1718375465397,-500.0,0.00018067,2]
[329456510,1718375465410,-500.0,0.00018067,2]
[329456512,1718375465437,-151.0,0.00018067,2]
[329456514,1718375465480,-151.0,0.00018067,2]
[329456515,1718375465500,-500.0,0.00018067,2]
[329456517,1718375465512,-500.0,0.00018067,2]
[329456519,1718375465540,-500.0,0.00018067,2]
[329456521,1718375465550,-500.0,0.00018067,2]
[329456523,1718375465570,-500.0,0.00018067,2]
[329456525,1718375465580,-426.54230119,0.00018067,2]
[329456527,1718375465617,-500.0,0.00018067,2]
[329456529,1718375465636,-500.0,0.00018067,2]
[329456531,1718375465647,-205.55308,0.00018067,2]
[329456533,1718375465660,-205.55308,0.00018067,2]
[329456535,1718375465689,-500.0,0.00018067,2]
[329456539,1718375465732,-503.20075727,0.00018067,2]
[329456540,1718375465743,-151.0,0.00018067,2]
[329456543,1718375465780,-151.0,0.00018067,2]
[329456545,1718375465808,-500.0,0.00018067,2]
[329456546,1718375465829,-500.0,0.00018067,2]
[329456548,1718375465857,-500.0,0.00018067,2]
[329456550,1718375465883,-176.809303,0.00018067,2]
[329456552,1718375465895,-500.0,0.00018067,2]
[329456554,1718375465915,-176.809303,0.00018067,2]
[329456556,1718375465936,-500.0,0.00018067,2]
[329456558,1718375465947,-151.0,0.00018067,2]
[329456559,1718375465958,-500.0,0.00018067,2]
[329456562,1718375465999,-500.0,0.00018067,2]
[329456564,1718375466036,-151.0,0.00018067,2]
[329456567,1718375466074,-500.0,0.00018067,2]
[329456568,1718375466093,-151.0,0.00018067,2]
[329456571,1718375466107,-151.0,0.00018067,2]
[329456573,1718375466132,-151.0,0.00018067,2]
[329456575,1718375466149,-151.0,0.00018067,2]
[329456576,1718375466187,-500.0,0.00018067,2]
[329456578,1718375466212,-500.0,0.00018067,2]
[329456580,1718375466228,-500.0,0.00018067,2]
[329456582,1718375466241,-190.792332,0.00018067,2]
[329456584,1718375466268,-190.792332,0.00018067,2]
[329456586,1718375466279,-190.792332,0.00018067,2]
[329456588,1718375466315,-190.792332,0.00018067,2]
[329456589,1718375466326,-333.095242,0.00018067,2]
[329456592,1718375466362,-333.095242,0.00018067,2]
[329456595,1718375466414,-333.095242,0.00018067,2]
[329456597,1718375466433,-333.095242,0.00018067,2]
[329456599,1718375466448,-500.0,0.00018067,2]
[329456601,1718375466472,-500.0,0.00018067,2]
[329456602,1718375466509,-500.0,0.00018067,2]
[329456604,1718375466541,-4492.614933,0.00018067,2]
[329456607,1718375466558,-4492.614933,0.00018067,2]
[329456608,1718375466577,-4492.614933,0.00018067,2]
[329456610,1718375466590,-4492.614933,0.00018067,2]
[329456612,1718375466602,-505.61753516,0.00018067,2]
[329456614,1718375466620,-1841.287719,0.00018067,2]
[329456616,1718375466652,-1841.287719,0.00018067,2]
[329456618,1718375466695,-500.0,0.00018067,2]
[329456619,1718375466721,-1841.287719,0.00018067,2]
[329456622,1718375466739,-1841.287719,0.00018067,2]
[329456624,1718375466763,-211.154694,0.00018067,2]
[329456626,1718375466784,-211.154694,0.00018067,2]
[329456627,1718375466797,-211.154694,0.00018067,2]
[329456629,1718375466808,-211.154694,0.00018067,2]
[329456631,1718375466828,-1361.183768,0.00018067,2]
[329456633,1718375466839,-1361.183768,0.00018067,2]
[329456635,1718375466861,-1361.183768,0.00018067,2]
[329456637,1718375466885,-1361.183768,0.00018067,2]
[329456639,1718375466903,-500.0,0.00018067,2]
[329456641,1718375466915,-910.13990356,0.00018067,2]
[329456652,1718375467096,-812.90890644,0.00018067,2]
[329456654,1718375467108,-1723.04881,0.00018067,2]
[329456656,1718375467133,-1723.04881,0.00018067,2]
[329456659,1718375467164,-1723.04881,0.00018067,2]
[329456661,1718375467185,-506.30707113,0.00018067,2]
[329456663,1718375467229,-500.0,0.00018067,2]
[329456665,1718375467265,-151.0,0.00018067,2]
[329456667,1718375467301,-151.0,0.00018067,2]
[329456669,1718375467333,-736.75034,0.00018067,2]
[329456671,1718375467349,-736.75034,0.00018067,2]
[329456673,1718375467373,-736.75034,0.00018067,2]
[329456674,1718375467385,-736.75034,0.00018067,2]
[329456677,1718375467429,-500.0,0.00018067,2]
[329456679,1718375467472,-151.0,0.00018067,2]
[329456680,1718375467485,-151.0,0.00018067,2]
[329456683,1718375467517,-151.0,0.00018067,2]
[329456684,1718375467536,-463.27680263,0.00018067,2]
[329456687,1718375467572,-500.0,0.00018067,2]
[329456689,1718375467600,-151.0,0.00018067,2]
[329456691,1718375467630,-3061.86,0.00018067,2]
[329456692,1718375467641,-867.7,0.00018067,2]
[329456695,1718375467661,-500.0,0.00018067,2]
[329456697,1718375467687,-500.0,0.00018067,2]
[329456698,1718375467716,-500.0,0.00018067,2]
[329456700,1718375467734,-291.600734,0.00018067,2]
[329456702,1718375467745,-291.600734,0.00018067,2]
[329456704,1718375467764,-250.0,0.00018067,2]
[329456705,1718375467780,-500.0,0.00018067,2]
[329456707,1718375467804,-291.600734,0.00018067,2]
[329456709,1718375467850,-291.600734,0.00018067,2]
[329456711,1718375467867,-566.19194586,0.00018067,2]
[329456713,1718375467885,-200.56349914,0.00018067,2]
[329456715,1718375467899,-766.755445,0.00018067,2]
[329456717,1718375467909,-766.755445,0.00018067,2]
[329456719,1718375467919,-766.755445,0.00018067,2]
[329456720,1718375467949,-500.0,0.00018067,2]
[329456722,1718375467970,-8730.58,0.00018067,2]
[329456724,1718375468004,-500.0,0.00018067,2]
[329456727,1718375468036,-500.0,0.00018067,2]
[329456729,1718375468053,-806.51,0.00018067,2]
[329456731,1718375468087,-2978.64,0.00018067,2]
[329456733,1718375468099,-500.0,0.00018067,2]
[329456735,1718375468116,-500.0,0.00018067,2]
[329456737,1718375468161,-151.0,0.00018067,2]
[329456738,1718375468194,-151.0,0.00018067,2]
[329456741,1718375468217,-500.0,0.00018067,2]
[329456744,1718375468267,-500.0,0.00018067,2]
[329456746,1718375468295,-500.0,0.00018068,2]
[329456747,1718375468305,-500.0,0.00018068,2]
[329456750,1718375468364,-500.0,0.00018068,2]
[329456751,1718375468389,-500.0,0.00018068,2]
[329456753,1718375468399,-500.0,0.00018068,2]
[329456755,1718375468410,-500.0,0.00018068,2]
[329456757,1718375468420,-506.90361651,0.00018068,2]
[329456759,1718375468445,-500.0,0.00018068,2]
[329456761,1718375468472,-500.0,0.00018068,2]
[329456763,1718375468492,-234.05702515,0.00018068,2]
[329456765,1718375468506,-519.78178806,0.00018068,2]
[329456767,1718375468519,-500.0,0.00018068,2]
[329456769,1718375468549,-511.27042147,0.00018068,2]
[329456771,1718375468567,-501.02754867,0.00018068,2]
[329456772,1718375468598,-503.1027841,0.00018068,2]
[329456774,1718375468636,-151.0,0.00018068,2]
[329456782,1718375468748,-500.0,0.00018068,2]
[329456784,1718375468761,-238.319137,0.00018068,2]
[329456786,1718375468774,-151.0,0.00018068,2]
[329456788,1718375468784,-151.0,0.00018068,2]
[329456790,1718375468795,-151.0,0.00018068,2]
[329456793,1718375468821,-151.0,0.00018068,2]
[329456795,1718375468852,-151.0,0.00018068,2]
[329456796,1718375468876,-151.0,0.00018068,2]
[329456798,1718375468892,-151.0,0.00018068,2]
[329456801,1718375468924,-151.0,0.00018068,2]
[329456803,1718375468940,-170.622398,0.00018068,2]
[329456805,1718375468950,-255.52208,0.00018068,2]
[329456807,1718375468962,-255.52208,0.00018068,2]
[329456810,1718375468987,-151.0,0.00018068,2]
[329456812,1718375468998,-205.55308,0.00018068,2]
[329456814,1718375469017,-205.55308,0.00018068,2]
[329456816,1718375469037,-151.0,0.00018068,2]
[329456817,1718375469081,-176.809303,0.00018068,2]
[329456818,1718375469099,-176.809303,0.00018068,2]
[329456819,1718375469110,-151.0,0.00018068,2]
[329456820,1718375469152,-500.0,0.00018068,2]
[329456821,1718375469183,-161.841558,0.00018068,2]
[329456822,1718375469208,-151.0,0.00018068,2]
[329456823,1718375469233,-500.0,0.00018068,2]
[329456825,1718375469253,-155.0924,0.00018068,2]
[329456826,1718375469265,-500.0,0.00018068,2]
[329456828,1718375469307,-500.0,0.00018068,2]
[329456829,1718375469359,-500.0,0.00018068,2]
[329456831,1718375469369,-190.792332,0.00018068,2]
[329456833,1718375469416,-190.792332,0.00018068,2]
[329456835,1718375469427,-3265.365085,0.00018068,2]
[329456837,1718375469451,-333.095242,0.00018068,2]
[329456839,1718375469487,-333.095242,0.00018068,2]
[329456841,1718375469529,-4492.614933,0.00018068,2]
[329456843,1718375469542,-4492.614933,0.00018068,2]
[329456846,1718375469557,-1841.287719,0.00018068,2]
[329456847,1718375469572,-1841.287719,0.00018068,2]
[329456848,1718375469601,-211.154694,0.00018068,2]
[329456849,1718375469615,-211.154694,0.00018068,2]
[329456851,1718375469632,-1361.183768,0.00018068,2]
[329456853,1718375469645,-1361.183768,0.00018068,2]
[329456855,1718375469672,-307.63281626,0.00018068,2]
[329456904,1718375470664,-500.0,0.0001769,2]
[329456906,1718375470679,-500.0,0.0001769,2]
[329456908,1718375470695,-500.0,0.00017792,2]
[329456910,1718375470714,-500.0,0.00017792,2]
[329456912,1718375470730,-2353.70556,0.00017792,2]
[329456914,1718375470746,-151.0,0.00017792,2]
[329456916,1718375470768,-500.0,0.00017793,2]
[329456919,1718375470856,-2353.70556,0.00017793,2]
[329456922,1718375470889,-488.73601996,0.00017793,2]
[329456924,1718375470909,-1864.96954004,0.00017793,2]
[329456926,1718375470941,-2353.70556,0.00017794,2]
[329456928,1718375470967,-2353.70556,0.00017794,2]
[329456930,1718375470985,-2353.70556,0.00017794,2]
[329456932,1718375471023,-500.0,0.00017964,2]
[329456934,1718375471078,-500.0,0.00017964,2]
[329456937,1718375471134,-552.0087273,0.00018066,2]
[329456939,1718375471173,-500.0,0.00018066,2]
[329456941,1718375471201,-2353.70556,0.00018066,2]
[329456943,1718375471237,-602.99949266,0.00018066,2]
[329456946,1718375471281,-1750.70606734,0.00018066,2]
[329456948,1718375471303,-500.0,0.00018067,2]
[329456951,1718375471360,-1415.41599374,0.00018068,2]
[329456953,1718375471400,-1723.04881,0.00018068,2]
[329456955,1718375471414,-736.75034,0.00018068,2]
[329456956,1718375471432,-736.75034,0.00018068,2]
[329456958,1718375471475,-151.0,0.00018068,2]
[329456960,1718375471505,-151.0,0.00018068,2]
[329456962,1718375471521,-151.0,0.00018068,2]
[329456964,1718375471541,-291.600734,0.00018068,2]
[329456968,1718375471593,-291.600734,0.00018068,2]
[329456970,1718375471621,-766.755445,0.00018068,2]
[329456972,1718375471637,-766.755439,0.00018068,2]
[329456975,1718375471659,-151.0,0.00018068,2]
[329456977,1718375471679,-331.0,0.00018108,2]
[329456979,1718375471703,-151.0,0.00018108,2]
[329456981,1718375471716,-500.0,0.00018238,2]
[329456984,1718375471757,-500.0,0.00018238,2]
[329456986,1718375471774,-500.0,0.00018238,2]
[329456988,1718375471789,-500.0,0.00018238,2]
[329456990,1718375471803,-500.0,0.00018238,2]
[329456993,1718375471816,-500.0,0.00018238,2]
[329456995,1718375471836,-500.0,0.00018239,2]
[329456997,1718375471865,-500.0,0.00018239,2]
[329456999,1718375471884,-500.0,0.00018239,2]
[329457001,1718375471898,-500.0,0.00018239,2]
[329457003,1718375471932,-500.0,0.00018239,2]
[329457005,1718375471945,-500.0,0.00018239,2]
[329457007,1718375471975,-500.0,0.00018239,2]
[329457009,1718375472022,-500.0,0.00018239,2]
[329457011,1718375472054,-500.0,0.00018239,2]
[329457013,1718375472067,-500.0,0.00018239,2]